{"text_format":"1","workbook":"xlsx","n_sheets":1,"sheets":["認定申請書"],"not_rendered":{"charts":0,"images":26,"macros":1,"external_links":0,"defined_names":1,"comments":0,"pivot_tables":0},"unopened":[],"bounds":{"document_bytes":16777216,"sheet_cells":100000,"rows_first":2000,"rows_last":500,"rows_between":2000,"halvings":0,"cell_chars":16384,"cell_head_chars":4096},"cells_cut":0,"cells_raw":0,"read":"whole","date_system":"1900"}

{"sheet":"認定申請書","index":0,"n_rows":42,"n_cols":45,"rows_kept":42,"cut":false,"hidden":false,"merged":[[36,0,36,6],[36,7,36,27],[36,28,40,35],[37,0,41,27],[41,28,41,35],[30,0,31,3],[30,4,30,5],[30,31,30,34],[31,4,31,5],[31,31,31,34],[32,0,34,1],[32,2,33,3],[32,5,32,15],[32,16,32,26],[33,6,33,33],[34,2,34,3],[34,4,34,23],[34,24,34,29],[34,30,34,35],[26,0,27,3],[26,7,26,35],[27,7,27,35],[28,0,29,3],[28,5,28,35],[29,5,29,35],[23,30,24,30],[23,31,24,31],[23,32,24,32],[23,33,24,33],[23,34,24,34],[23,35,24,35],[23,24,24,24],[23,25,24,25],[23,26,24,26],[23,27,24,27],[23,28,24,28],[23,29,24,29],[23,0,24,1],[23,3,23,10],[23,11,24,16],[23,17,24,19],[23,20,24,21],[23,22,24,23],[24,2,24,10],[21,30,22,30],[21,31,22,31],[21,32,22,32],[21,33,22,33],[21,34,22,34],[21,35,22,35],[21,24,22,24],[21,25,22,25],[21,26,22,26],[21,27,22,27],[21,28,22,28],[21,29,22,29],[21,0,22,1],[21,3,21,10],[21,11,22,16],[21,17,22,19],[21,20,22,21],[21,22,22,23],[22,2,22,10],[19,30,20,30],[19,31,20,31],[19,0,20,1],[19,3,19,10],[19,11,20,16],[19,17,20,19],[19,20,20,21],[19,22,20,23],[20,2,20,10],[19,32,20,32],[19,33,20,33],[19,34,20,34],[19,35,20,35],[19,24,20,24],[19,25,20,25],[19,26,20,26],[19,27,20,27],[19,28,20,28],[19,29,20,29],[17,32,18,32],[17,33,18,33],[17,34,18,34],[17,35,18,35],[17,24,18,24],[17,25,18,25],[17,26,18,26],[17,27,18,27],[17,28,18,28],[17,29,18,29],[17,0,18,1],[17,3,17,10],[17,11,18,16],[17,17,18,19],[17,20,18,21],[17,22,18,23],[18,2,18,10],[15,30,16,30],[15,31,16,31],[15,0,16,1],[15,3,15,10],[15,11,16,16],[15,17,16,19],[15,20,16,21],[15,22,16,23],[16,2,16,10],[17,30,18,30],[17,31,18,31],[15,32,16,32],[15,33,16,33],[15,34,16,34],[15,35,16,35],[15,24,16,24],[15,25,16,25],[15,26,16,26],[15,27,16,27],[15,28,16,28],[15,29,16,29],[14,2,14,10],[14,11,14,16],[14,17,14,19],[14,20,14,21],[14,22,14,23],[14,24,14,35],[9,32,10,32],[9,33,10,33],[9,34,10,34],[9,35,10,35],[10,2,10,7],[11,0,11,35],[9,26,10,26],[9,27,10,27],[9,28,10,28],[9,29,10,29],[9,30,10,30],[9,31,10,31],[0,0,0,35],[1,0,1,35],[6,42,8,42],[7,0,8,1],[7,3,7,7],[7,8,8,13],[7,14,8,16],[7,17,8,23],[7,24,8,24],[7,25,8,25],[7,26,8,26],[7,27,8,27],[7,34,8,34],[7,35,8,35],[8,2,8,7],[7,28,8,28],[7,29,8,29],[7,30,8,30],[7,31,8,31],[7,32,8,32],[7,33,8,33],[1,37,2,38],[1,43,18,43],[2,0,2,35],[3,0,3,35],[4,0,5,1],[4,7,4,16],[4,17,4,23],[4,24,5,25],[4,26,5,35],[5,2,5,16],[5,17,5,23],[6,2,6,7],[6,8,6,13],[6,14,6,16],[6,17,6,23],[6,24,6,35],[9,0,10,1],[9,3,9,7],[9,8,10,13],[9,14,10,16],[9,17,10,23],[9,24,10,24],[9,25,10,25],[13,0,13,35],[14,0,14,1]]}
["別記様式第１号（第４条関係）"]
["施設型給付費・地域型保育給付費等 教育・保育給付認定（変更・再交付）申請書",null,null,null,null,null,null,null,null,null,null,null,null,null,null,null,null,null,null,null,null,null,null,null,null,null,null,null,null,null,null,null,null,null,null,null,null,{"$f":"IF(COUNTIF(AP2:AP18,\"NG\")>0,\"NG\",\"\")","v":"NG"},{"$f":"IF(COUNTIF(AR2:AR19,\"NG\")>=0,\"NG\",\"OK\")","v":"NG"},null,"住所",{"$f":"IF(OR(C6=\"\",C6=0),\"NG\",\"OK\")","v":"NG"},null,{"$f":"IF(AL2=\"NG\",\"未入力の箇所があります。\",\"入力に間違いがないか確認して印刷してください。\")","v":"未入力の箇所があります。"}]
["　文京区長　殿　",null,null,null,null,null,null,null,null,null,null,null,null,null,null,null,null,null,null,null,null,null,null,null,null,null,null,null,null,null,null,null,null,null,null,null,null,{"$f":"IF(COUNTIF(AQ3:AQ20,\"NG\")>=0,\"NG\",\"OK\")","v":"NG"},"NG",null,"電話番号(自宅)",{"$f":"IF(OR(R6=\"\",R6=0),\"NG\",\"OK\")","v":"NG"}]
["　\n　次のとおり施設型給付費・地域型保育給付費等に係る教育・保育給付認定を申請します。\n　なお、教育・保育給付認定及び利用者負担額決定に必要な個人情報(同一世帯者に係るものを含む。）について文京区長が確認すること及びその情報に基づき決定した利用者負担額を特定教育施設・保育施設等に提示することに同意します。",null,null,null,null,null,null,null,null,null,null,null,null,null,null,null,null,null,null,null,null,null,null,null,null,null,null,null,null,null,null,null,null,null,null,null,null,null,null,null,"申請日",{"$f":"IF(OR(AA5=\"\",AA5=0),\"NG\",\"OK\")","v":"NG"}]
["現住所",null,"〒",null,"-",null,null,null,null,null,null,null,null,null,null,null,null,"電話番号（自宅）",null,null,null,null,null,null,"申請日",null,null,null,null,null,null,null,null,null,null,null,null,null,null,null,"氏名",{"$f":"IF(OR(C9=\"\",C9=0),\"NG\",\"OK\")","v":"NG"}]
[null,null,null,null,null,null,null,null,null,null,null,null,null,null,null,null,null,null,null,null,null,null,null,null,null,null,null,null,null,null,null,null,null,null,null,null,"文京区 町名 〇丁目〇番〇-〇号",null,null,null,"生年月日",{"$f":"IF(OR(I8=\"\",I8=0),\"NG\",\"OK\")","v":"NG"}]
[null,null,"氏名（自署又は記名押印）",null,null,null,null,null,"生年月日",null,null,null,null,null,"児童との続柄",null,null,"電話番号（携帯）",null,null,null,null,null,null,"個人番号（マイナンバー）",null,null,null,null,null,null,null,null,null,null,null,null,null,null,null,"続柄",{"$f":"IF(OR(O8=\"\",O8=0),\"NG\",\"OK\")","v":"NG"},{"$f":"IF(AL2=\"NG\",\"⇐\",\"\")","v":"⇐"}]
["保護者①※",null,"ﾌﾘｶﾞﾅ",null,null,null,null,null,null,null,null,null,null,null,null,null,null,null,null,null,null,null,null,null,null,null,null,null,null,null,null,null,null,null,null,null,null,null,null,null,"携帯番号",{"$f":"IF(OR(R8=\"\",R8=0),\"NG\",\"OK\")","v":"NG"}]
[null,null,null,null,null,null,null,null,null,null,null,null,null,null,null,null,null,null,null,null,null,null,null,null,null,null,null,null,null,null,null,null,null,null,null,null,{"$f":"12-COUNTIF(Y8:AJ9,\"\")","v":-12},null,null,null,"個人番号保護者",{"$f":"IF(AK9=0,\"OK\",\"NG\")","v":"NG"}]
["保護者②",null,"ﾌﾘｶﾞﾅ",null,null,null,null,null,null,null,null,null,null,null,null,null,null,null,null,null,null,null,null,null,null,null,null,null,null,null,null,null,null,null,null,null,{"$f":"12-COUNTIF(Y10:AJ11,\"\")","v":-12},null,null,null,"申込児童☑",{"$f":"IF(AL25>0,\"OK\",\"NG\")","v":"NG"}]
[null,null,null,null,null,null,null,null,null,null,null,null,null,null,null,null,null,null,null,null,null,null,null,null,null,null,null,null,null,null,null,null,null,null,null,null,null,null,null,null,"児童氏名",{"$f":"IF(OR(C17=\"\",C17=0),\"NG\",\"OK\")","v":"NG"}]
["※　通知書等の郵送先の宛名は、保護者①に記入した方となります。",null,null,null,null,null,null,null,null,null,null,null,null,null,null,null,null,null,null,null,null,null,null,null,null,null,null,null,null,null,null,null,null,null,null,null,null,null,null,null,"児童生年月日",{"$f":"IF(OR(L16=\"\",L16=0),\"NG\",\"OK\")","v":"NG"}]
[null,null,null,null,null,null,null,null,null,null,null,null,null,null,null,null,null,null,null,null,null,null,null,null,null,null,null,null,null,null,null,null,null,null,null,null,null,null,null,null,"児童続柄",{"$f":"IF(OR(R16=\"\",R16=0),\"NG\",\"OK\")","v":"NG"}]
["園児の属する世帯の状況\n※　保護者を除く、同一生計の方全員を記入してください（対象児童を含む。）。",null,null,null,null,null,null,null,null,null,null,null,null,null,null,null,null,null,null,null,null,null,null,null,null,null,null,null,null,null,null,null,null,null,null,null,null,null,null,null,"児童性別",{"$f":"IF(OR(W16=\"\",W16=0),\"NG\",\"OK\")","v":"NG"}]
["申込児童に✔",null,"氏　名",null,null,null,null,null,null,null,null,"生年月日",null,null,null,null,null,"児童との続柄",null,null,"年齢",null,"性別",null,"個人番号（マイナンバー）",null,null,null,null,null,null,null,null,null,null,null,null,null,null,null,"個人番号児童",{"$f":"IF(AN25>0,\"OK\",\"NG\")","v":"NG"}]
[null,null,"ﾌﾘｶﾞﾅ",null,null,null,null,null,null,null,null,null,null,null,null,null,null,null,null,null,{"$f":"IF(L16=0,\"\",IFERROR(DATEDIF(L16,$AL$17,\"y\"),0))","v":""},null,null,null,null,null,null,null,null,null,null,null,null,null,null,null,null,null,null,null,"保育希望有無",{"$f":"IF(AL27=2,\"OK\",\"NG\")","v":"NG"}]
[null,null,null,null,null,null,null,null,null,null,null,null,null,null,null,null,null,null,null,null,null,null,null,null,null,null,null,null,null,null,null,null,null,null,null,null,false,"2023-04-01",{"$f":"12-COUNTIF(Y16:AJ17,\"\")","v":-12},null,"保育希望時間",{"$f":"IF(AL29=2,\"OK\",\"NG\")","v":"NG"}]
[null,null,"ﾌﾘｶﾞﾅ",null,null,null,null,null,null,null,null,null,null,null,null,null,null,null,null,null,"",null,null,null,null,null,null,null,null,null,null,null,null,null,null,null,null,null,{"$f":"12-COUNTIF(Y17:AJ18,\"\")","v":-12},null,"必要とする事由",{"$f":"IF(AND(AR31=2,AR32=2),\"OK\",\"NG\")","v":"NG"}]
[null,null,null,null,null,null,null,null,null,null,null,null,null,null,null,null,null,null,null,null,null,null,null,null,null,null,null,null,null,null,null,null,null,null,null,null,false,null,-12]
[null,null,"ﾌﾘｶﾞﾅ",null,null,null,null,null,null,null,null,null,null,null,null,null,null,null,null,null,"",null,null,null,null,null,null,null,null,null,null,null,null,null,null,null,null,null,-12]
[null,null,null,null,null,null,null,null,null,null,null,null,null,null,null,null,null,null,null,null,null,null,null,null,null,null,null,null,null,null,null,null,null,null,null,null,false,null,-12]
[null,null,"ﾌﾘｶﾞﾅ",null,null,null,null,null,null,null,null,null,null,null,null,null,null,null,null,null,"",null,null,null,null,null,null,null,null,null,null,null,null,null,null,null,null,null,-12]
[null,null,null,null,null,null,null,null,null,null,null,null,null,null,null,null,null,null,null,null,null,null,null,null,null,null,null,null,null,null,null,null,null,null,null,null,false,null,-12]
[null,null,"ﾌﾘｶﾞﾅ",null,null,null,null,null,null,null,null,null,null,null,null,null,null,null,null,null,"",null,null,null,null,null,null,null,null,null,null,null,null,null,null,null,null,null,-12]
[null,null,null,null,null,null,null,null,null,null,null,null,null,null,null,null,null,null,null,null,null,null,null,null,null,null,null,null,null,null,null,null,null,null,null,null,false,{"$f":"COUNTIF(AK17:AK25,TRUE)","v":0},-12,{"$f":"COUNTIF(AM17:AM25,0)","v":0}]
[]
["保育の希望の有無",null,null,null,null,"有",null,"保護者の労働、疾病等の理由により、保育所等において保育の利用を希望する場合(幼稚園等と併願の場合を含む。）",null,null,null,null,null,null,null,null,null,null,null,null,null,null,null,null,null,null,null,null,null,null,null,null,null,null,null,null,false,{"$f":"IF(COUNTIF(AK27:AK28,TRUE)=1,2,1)","v":1}]
[null,null,null,null,null,"無",null,"幼稚園等の利用を希望する場合(保育所と併願の場合を除く。）",null,null,null,null,null,null,null,null,null,null,null,null,null,null,null,null,null,null,null,null,null,null,null,null,null,null,null,null,false]
["希望保育時間",null,null,null,null,"保育短時間　（9:00～17:00の間で保育の必要な時間）",null,null,null,null,null,null,null,null,null,null,null,null,null,null,null,null,null,null,null,null,null,null,null,null,null,null,null,null,null,null,false,{"$f":"IF(COUNTIF(AK29:AK30,TRUE)=1,2,1)","v":1}]
[null,null,null,null,null,"保育標準時間（7:15～18:15の間で保育の必要な時間 ※ 延長保育利用の場合は～19:15）",null,null,null,null,null,null,null,null,null,null,null,null,null,null,null,null,null,null,null,null,null,null,null,null,null,null,null,null,null,null,false]
["保育の利用を\n必要とする理由",null,null,null," 保護者①",null,null,"就労",null,null,"就学",null,null,"求職中",null,null,"疾病･障害",null,null,null,"介護･看護",null,null,null,"妊娠･出産",null,null,null,"その他",null,"（",null,null,null,null,"）",false,false,false,false,false,false,false,{"$f":"IF(COUNTIF(AK31:AQ31,TRUE)=1,2,1)","v":1},{"$f":"IF(AND(AQ31=TRUE,AF31=\"\"),1,2)","v":2}]
[null,null,null,null," 保護者②",null,null,"就労",null,null,"就学",null,null,"求職中",null,null,"疾病･障害",null,null,null,"介護･看護",null,null,null,"妊娠･出産",null,null,null,"その他",null,"（",null,null,null,null,"）",false,false,false,false,false,false,false,{"$f":"IF(COUNTIF(AK32:AQ32,TRUE)=1,2,1)","v":1},{"$f":"IF(AND(AQ32=TRUE,AF32=\"\"),1,2)","v":2}]
["変更の\n場合",null,"変更事由",null,null,"保育短時間 → 保育標準時間へ変更",null,null,null,null,null,null,null,null,null,null,"保育標準時間 → 保育短時間へ変更",null,null,null,null,null,null,null,null,null,null,null,null,null,null,null,null,null,null,null,false,false,false,{"$f":"IF(COUNTIF(AK33:AM33,TRUE)=1,2,1)","v":1},{"$f":"IF(AND(AM33=TRUE,G34=\"\"),1,2)","v":2},{"$f":"IF(AND(AM33=TRUE,E35=\"\"),1,2)","v":2}]
[null,null,null,null,null,"その他（",null,null,null,null,null,null,null,null,null,null,null,null,null,null,null,null,null,null,null,null,null,null,null,null,null,null,null,null,")"]
[null,null,"変更理由",null,null,null,null,null,null,null,null,null,null,null,null,null,null,null,null,null,null,null,null,null,"支給認定証番号"]
[]
["区記入欄",null,null,null,null,null,null,"　窓口 (父・母・　　　) 受付(　　　)／郵送／夜間P",null,null,null,null,null,null,null,null,null,null,null,null,null,null,null,null,null,null,null,null,"収受印"]
[]
[]
[]
[]
[null,null,null,null,null,null,null,null,null,null,null,null,null,null,null,null,null,null,null,null,null,null,null,null,null,null,null,null,"NO."]